fUST/lending_fUST_20240813
["ID","MTS","AMOUNT","RATE_DAILY","PERIOD"]
[334719009,1723504238864,-500.0,0.00014258,2]
[334719010,1723504239030,-500.0,0.00014258,2]
[334719011,1723504239049,-500.0,0.00014258,2]
[334719012,1723504239060,-500.0,0.00014258,2]
[334719013,1723504239071,-500.0,0.00014258,2]
[334719014,1723504239083,-500.0,0.00014258,2]
[334719015,1723504239092,-500.0,0.00014258,2]
[334719016,1723504239101,-352.73643178,0.00014258,2]
[334719017,1723504239110,-778.96,0.00014259,2]
[334719018,1723504239120,-500.0,0.00014259,2]
[334719019,1723504239131,-3802.29,0.00014259,2]
[334719020,1723504239142,-1176.11,0.00014259,2]
[334719021,1723504239153,-1023.46,0.00014259,2]
[334719022,1723504239164,-3768.71,0.00014259,2]
[334719023,1723504239173,-1265.8,0.00014259,2]
[334719024,1723504239182,-500.0,0.00014259,2]
[334719025,1723504239192,-500.0,0.00014259,2]
[334719026,1723504239202,-1314.49,0.00014259,2]
[334719027,1723504239211,-1380.85,0.00014259,2]
[334719028,1723504239224,-895.54,0.00014259,2]
[334719029,1723504239234,-1320.55,0.00014259,2]
[334719030,1723504239244,-500.0,0.0001426,2]
[334719031,1723504239253,-500.0,0.0001426,2]
[334719032,1723504239263,-500.0,0.0001426,2]
[334719033,1723504239274,-500.0,0.0001426,2]
[334719034,1723504239284,-500.0,0.0001426,2]
[334719035,1723504239299,-500.0,0.0001426,2]
[334719036,1723504239309,-500.0,0.0001426,2]
[334719037,1723504239319,-500.0,0.0001426,2]
[334719038,1723504239332,-500.0,0.0001426,2]
[334719039,1723504239343,-580.17,0.0001426,2]
[334719040,1723504239355,-500.0,0.0001426,2]
[334719041,1723504239368,-500.0,0.0001426,2]
[334719042,1723504239380,-535.90743817,0.0001426,2]
[334719043,1723504239390,-500.0,0.0001426,2]
[334719044,1723504239399,-500.0,0.0001426,2]
[334719045,1723504239408,-284.84680017,0.0001426,2]
[334719046,1723504239417,-388.58388227,0.0001426,2]
[334719047,1723504239427,-606.96,0.0001426,2]
[334719048,1723504239437,-500.0,0.0001426,2]
[334719049,1723504239446,-627.91,0.0001426,2]
[334719050,1723504239455,-500.0,0.0001426,2]
[334719051,1723504239466,-500.0,0.0001426,2]
[334719052,1723504239475,-500.0,0.0001426,2]
[334719053,1723504239485,-500.0,0.0001426,2]
[334719054,1723504239494,-500.0,0.0001426,2]
[334719055,1723504239503,-500.0,0.0001426,2]
[334719056,1723504239513,-747.65,0.0001426,2]
[334719057,1723504239522,-500.0,0.0001426,2]
[334719058,1723504239531,-500.0,0.0001426,2]
[334719059,1723504239542,-500.0,0.0001426,2]
[334719060,1723504239554,-500.0,0.0001426,2]
[334719061,1723504239563,-207.41790081,0.0001426,2]
[334719062,1723504239574,-500.0,0.0001426,2]
[334719063,1723504239584,-596.9,0.0001426,2]
[334719064,1723504239593,-500.0,0.0001426,2]
[334719065,1723504239604,-500.0,0.0001426,2]
[334719066,1723504239614,-501.7475152,0.0001426,2]
[334719067,1723504239625,-501.48143873,0.0001426,2]
[334719068,1723504239637,-500.0,0.0001426,2]
[334719069,1723504239648,-500.0,0.0001426,2]
[334719070,1723504239659,-500.0,0.0001426,2]
[334719071,1723504239668,-500.0,0.0001426,2]
[334719072,1723504239679,-500.0,0.0001426,2]
[334719073,1723504239690,-7458.7,0.0001426,2]
[334719074,1723504239701,-500.0,0.0001426,2]
[334719075,1723504239710,-810.77,0.0001426,2]
[334719076,1723504239719,-500.0,0.0001426,2]
[334719077,1723504239729,-2196.28,0.0001426,2]
[334719078,1723504239739,-1003.92,0.0001426,2]
[334719079,1723504239748,-500.0,0.0001426,2]
[334719080,1723504239758,-758.53,0.0001426,2]
[334719081,1723504239767,-500.0,0.0001426,2]
[334719082,1723504239776,-500.0,0.0001426,2]
[334719083,1723504239785,-1234.65,0.0001426,2]
[334719084,1723504239795,-832.21,0.0001426,2]
[334719085,1723504239804,-500.0,0.0001426,2]
[334719086,1723504239813,-500.0,0.0001426,2]
[334719087,1723504239822,-500.0,0.0001426,2]
[334719088,1723504239832,-500.0,0.0001426,2]
[334719089,1723504239841,-500.0,0.0001426,2]
[334719090,1723504239851,-597.27327732,0.0001426,2]
[334719091,1723504239862,-1263.79,0.0001426,2]
[334719092,1723504239871,-1014.2,0.0001426,2]
[334719093,1723504239880,-500.0,0.0001426,2]
[334719094,1723504239889,-873.4,0.0001426,2]
[334719095,1723504239898,-500.0,0.0001426,2]
[334719097,1723504239908,-500.0,0.0001426,2]
[334719098,1723504239917,-343.6593187,0.0001426,2]
[334719099,1723504239926,-722.71,0.0001426,2]
[334719100,1723504239936,-581.86,0.0001426,2]
[334719101,1723504239947,-500.0,0.0001426,2]
[334719102,1723504239958,-500.0,0.0001426,2]
[334719103,1723504239967,-500.0,0.0001426,2]
[334719104,1723504239978,-631.03,0.0001426,2]
[334719105,1723504239988,-502.97989153,0.0001426,2]
[334719106,1723504239998,-500.0,0.0001426,2]
[334719107,1723504240007,-500.0,0.0001426,2]
[334719108,1723504240016,-500.0,0.0001426,2]
[334719109,1723504240025,-748.94,0.0001426,2]
[334719110,1723504240034,-500.0,0.0001426,2]
[334719111,1723504240043,-1259.13,0.0001426,2]
[334719112,1723504240052,-504.46139654,0.0001426,2]
[334719113,1723504240061,-3545.02,0.0001426,2]
[334719114,1723504240071,-809.9,0.0001426,2]
[334719115,1723504240082,-655.56,0.0001426,2]
[334719116,1723504240093,-619.69,0.0001426,2]
[334719117,1723504240103,-500.0,0.0001426,2]
[334719119,1723504240115,-500.0,0.0001426,2]
[334719121,1723504240126,-500.0,0.0001426,2]
[334719123,1723504240136,-500.0,0.0001426,2]
[334719125,1723504240145,-1326.37,0.0001426,2]
[334719127,1723504240154,-500.0,0.0001426,2]
[334719129,1723504240164,-669.78,0.0001426,2]
[334719131,1723504240173,-500.0,0.0001426,2]
[334719133,1723504240183,-500.0,0.0001426,2]
[334719135,1723504240194,-765.95,0.0001426,2]
[334719136,1723504240204,-500.0,0.0001426,2]
[334719137,1723504240213,-500.0,0.0001426,2]
[334719138,1723504240226,-500.0,0.0001426,2]
[334719139,1723504240236,-500.0,0.0001426,2]
[334719140,1723504240245,-500.0,0.0001426,2]
[334719141,1723504240256,-688.75,0.0001426,2]
[334719142,1723504240268,-2198.28,0.0001426,2]
[334719143,1723504240278,-4210.84755757,0.00014262,2]
[334719144,1723504240289,-1678.3380441,0.00014266,2]
[334719145,1723504240302,-500.0,0.00014267,2]
[334719146,1723504240314,-322.66514326,0.00014267,2]
[334719147,1723504240326,-590.56,0.00014268,2]
[334719148,1723504240337,-3255.86,0.00014268,2]
[334719149,1723504240346,-500.0,0.00014268,2]
[334719150,1723504240355,-500.0,0.00014268,2]
[334719151,1723504240364,-1038.57,0.00014268,2]
[334719152,1723504240373,-500.0,0.00014268,2]
[334719153,1723504240383,-500.0,0.00014268,2]
[334719154,1723504240394,-500.0,0.00014268,2]
[334719155,1723504240404,-500.0,0.00014268,2]
[334719156,1723504240416,-500.0,0.00014268,2]
[334719157,1723504240426,-906.31,0.00014268,2]
[334719158,1723504240437,-1730.58,0.00014268,2]
[334719159,1723504240448,-2830.46,0.00014268,2]
[334719160,1723504240458,-1460.3,0.00014268,2]
[334719161,1723504240467,-500.0,0.00014268,2]
[334719162,1723504240476,-500.0,0.00014268,2]
[334719163,1723504240485,-1011.6,0.00014268,2]
[334719164,1723504240494,-500.0,0.00014268,2]
[334719165,1723504240503,-503.07808536,0.00014268,2]
[334719166,1723504240512,-1128.63,0.00014269,2]
[334719167,1723504240521,-6014.57,0.00014269,2]
[334719168,1723504240530,-1186.82,0.00014269,2]
[334719169,1723504240539,-684.23,0.00014269,2]
[334719170,1723504240549,-509.78177901,0.00014269,2]
[334719171,1723504240558,-765.77,0.00014269,2]
[334719172,1723504240567,-500.0,0.0001427,2]
[334719173,1723504240578,-500.0,0.0001427,2]
[334719174,1723504240591,-670.06,0.0001427,2]
[334719175,1723504240600,-500.0,0.0001427,2]
[334719176,1723504240610,-500.0,0.0001427,2]
[334719177,1723504240621,-500.0,0.0001427,2]
[334719178,1723504240632,-500.0,0.0001427,2]
[334719179,1723504240644,-618.12,0.0001427,2]
[334719180,1723504240654,-615.72,0.0001427,2]
[334719181,1723504240665,-542.94,0.0001427,2]
[334719182,1723504240675,-500.0,0.0001427,2]
[334719183,1723504240685,-500.0,0.0001427,2]
[334719184,1723504240694,-500.0,0.0001427,2]
[334719185,1723504240705,-500.0,0.0001427,2]
[334719186,1723504240715,-500.0,0.0001427,2]
[334719187,1723504240726,-976.85,0.0001427,2]
[334719188,1723504240738,-500.0,0.0001427,2]
[334719189,1723504240747,-500.0,0.0001427,2]
[334719190,1723504240757,-500.0,0.0001427,2]
[334719191,1723504240766,-500.0,0.0001427,2]
[334719192,1723504240776,-500.0,0.0001427,2]
[334719193,1723504240786,-500.0,0.0001427,2]
[334719194,1723504240795,-1247.09,0.0001427,2]
[334719195,1723504240804,-630.68,0.0001427,2]
[334719196,1723504240814,-500.0,0.0001427,2]
[334719197,1723504240825,-940.62,0.0001427,2]
[334719198,1723504240836,-921.38,0.0001427,2]
[334719199,1723504240848,-500.0,0.0001427,2]
[334719200,1723504240859,-500.0,0.0001427,2]
[334719201,1723504240871,-500.0,0.0001427,2]
[334719202,1723504240882,-546.56,0.0001427,2]
[334719203,1723504240891,-500.0,0.0001427,2]
[334719204,1723504240900,-1236.07,0.0001427,2]
[334719205,1723504240910,-500.0,0.0001427,2]
[334719206,1723504240920,-1158.03,0.0001427,2]
[334719207,1723504240931,-500.0,0.0001427,2]
[334719208,1723504240940,-862.64,0.0001427,2]
[334719209,1723504240951,-500.0,0.0001427,2]
[334719210,1723504240963,-1828.59,0.0001427,2]
[334719211,1723504240975,-1023.55,0.0001427,2]
[334719212,1723504240985,-500.0,0.00014272,2]
[334719213,1723504240994,-692.01,0.00014272,2]
[334719214,1723504241004,-500.0,0.00014272,2]
[334719215,1723504241014,-500.0,0.00014272,2]
[334719216,1723504241025,-500.0,0.00014272,2]
[334719217,1723504241037,-500.0,0.00014272,2]
[334719218,1723504241048,-500.0,0.00014272,2]
[334719219,1723504241058,-500.0,0.00014272,2]
[334719220,1723504241071,-500.0,0.00014272,2]
[334719221,1723504241080,-500.0,0.00014272,2]
[334719222,1723504241089,-500.0,0.00014272,2]
[334719223,1723504241099,-892.43,0.00014272,2]
[334719224,1723504241110,-500.0,0.00014272,2]
[334719225,1723504241120,-500.0,0.00014272,2]
[334719226,1723504241131,-558.32800564,0.00014272,2]
[334719227,1723504241141,-500.0,0.00014272,2]
[334719228,1723504241152,-500.0,0.00014272,2]
[334719229,1723504241163,-500.0,0.00014272,2]
[334719230,1723504241174,-500.0,0.00014272,2]
[334719231,1723504241185,-500.0,0.00014272,2]
[334719232,1723504241196,-500.0,0.00014272,2]
[334719233,1723504241206,-500.0,0.00014272,2]
[334719234,1723504241216,-500.0,0.00014272,2]
[334719235,1723504241227,-500.0,0.00014272,2]
[334719236,1723504241236,-500.0,0.00014272,2]
[334719237,1723504241246,-500.0,0.00014272,2]
[334719238,1723504241257,-613.05221837,0.00014272,2]
[334719239,1723504241266,-500.0,0.00014272,2]
[334719240,1723504241276,-604.46,0.00014272,2]
[334719241,1723504241285,-2125.62,0.00014272,2]
[334719242,1723504241296,-500.0,0.00014272,2]
[334719243,1723504241306,-500.0,0.00014272,2]
[334719244,1723504241315,-530.11960051,0.00014272,2]
[334719245,1723504241324,-500.0,0.00014272,2]
[334719246,1723504241334,-546.69,0.00014272,2]
[334719247,1723504241343,-500.0,0.00014272,2]
[334719248,1723504241353,-500.0,0.00014272,2]
[334719249,1723504241362,-500.0,0.00014272,2]
[334719250,1723504241372,-500.0,0.00014272,2]
[334719251,1723504241382,-500.0,0.00014272,2]
[334719252,1723504241394,-2000.0,0.00014282,2]
[334719253,1723504241403,-1176.96531835,0.00014282,2]
[334719254,1723504241415,-519.58492224,0.00014297,2]
[334719255,1723504241427,-150.112234,0.000143,2]
[334719256,1723504241437,-150.112233,0.000143,2]
[334719257,1723504241448,-500.0,0.00014305,2]
[334719258,1723504241458,-500.0,0.00014305,2]
[334719259,1723504241468,-500.0,0.00014305,2]
[334719260,1723504241477,-578.27,0.00014305,2]
[334719261,1723504241487,-8421.69511514,0.00014356,2]
[334719262,1723504241496,-151.0,0.00014366,2]
[334719263,1723504241505,-151.0,0.00014366,2]
[334719264,1723504241514,-151.0,0.00014366,2]
[334719265,1723504241523,-206.238747,0.00014366,2]
[334719266,1723504241532,-151.0,0.00014366,2]
[334719267,1723504241542,-232.234437,0.00014366,2]
[334719268,1723504241551,-151.0,0.00014366,2]
[334719269,1723504241561,-232.234437,0.00014366,2]
[334719270,1723504241571,-151.0,0.00014366,2]
[334719271,1723504241584,-151.0,0.00014366,2]
[334719272,1723504241595,-151.0,0.00014366,2]
[334719273,1723504241607,-161.900296,0.00014366,2]
[334719274,1723504241618,-161.900296,0.00014366,2]
[334719275,1723504241628,-151.0,0.00014366,2]
[334719276,1723504241640,-150.112233,0.000144,2]
[334719277,1723504241650,-519.58492224,0.00014434,2]
[334719278,1723504241661,-8421.69511514,0.00014522,2]
[334719279,1723504241670,-4210.84755757,0.00014523,2]
[334719280,1723504241680,-4210.84755757,0.00014524,2]
[334719281,1723504241689,-5211.70443174,0.00014527,2]
[334719282,1723504241698,-1083.99,0.00014529,2]
[334719283,1723504241708,-691.26,0.00014529,2]
[334719284,1723504241719,-500.0,0.00014531,2]
[334719285,1723504241730,-1797.24,0.00014531,2]
[334719286,1723504241740,-7016.3,0.00014531,2]
[334719287,1723504241750,-776.94,0.00014531,2]
[334719288,1723504241759,-1269.67,0.00014531,2]
[334719289,1723504241769,-22934.59148297,0.00014533,2]
[334719290,1723504241778,-778.96,0.00014533,2]
[334719291,1723504241787,-500.0,0.00014533,2]
[334719292,1723504241796,-3802.29,0.00014533,2]
[334719293,1723504241806,-1176.11,0.00014533,2]
[334719294,1723504241816,-1023.46,0.00014533,2]
[334719295,1723504241827,-3768.71,0.00014533,2]
[334719296,1723504241839,-1265.8,0.00014533,2]
[334719297,1723504241849,-500.0,0.00014533,2]
[334719298,1723504241859,-500.0,0.00014533,2]
[334719299,1723504241868,-1314.49,0.00014533,2]
[334719300,1723504241878,-1380.85,0.00014533,2]
[334719301,1723504241887,-895.54,0.00014533,2]
[334719302,1723504241896,-1320.55,0.00014533,2]
[334719303,1723504241906,-3926.45851338,0.00014533,2]
[334719310,1723504242800,-284.38904419,0.00014533,2]
[334719311,1723504242810,-625.40784173,0.00014534,2]
[334719312,1723504242819,-500.0,0.00014534,2]
[334719313,1723504242829,-500.0,0.00014534,2]
[334719314,1723504242840,-500.0,0.00014534,2]
[334719315,1723504242849,-500.0,0.00014534,2]
[334719316,1723504242859,-580.17,0.00014534,2]
[334719317,1723504242868,-500.0,0.00014534,2]
[334719318,1723504242878,-500.0,0.00014534,2]
[334719319,1723504242887,-606.96,0.00014534,2]
[334719320,1723504242896,-500.0,0.00014534,2]
[334719321,1723504242906,-627.91,0.00014534,2]
[334719322,1723504242916,-500.0,0.00014534,2]
[334719323,1723504242926,-500.0,0.00014534,2]
[334719324,1723504242935,-500.0,0.00014534,2]
[334719325,1723504242945,-500.0,0.00014534,2]
[334719326,1723504242955,-500.0,0.00014534,2]
[334719327,1723504242964,-500.0,0.00014534,2]
[334719328,1723504242973,-747.65,0.00014534,2]
[334719330,1723504242982,-500.0,0.00014534,2]
[334719332,1723504242992,-500.0,0.00014534,2]
[334719333,1723504243002,-535.73950374,0.00014534,2]
[334719334,1723504243011,-500.0,0.00014534,2]
[334719335,1723504243162,-596.9,0.00014534,2]
[334719336,1723504243173,-500.0,0.00014534,2]
[334719337,1723504243184,-500.0,0.00014534,2]
[334719338,1723504243193,-500.0,0.00014534,2]
[334719339,1723504243203,-500.0,0.00014534,2]
[334719340,1723504243212,-500.0,0.00014534,2]
[334719341,1723504243226,-7458.7,0.00014534,2]
[334719342,1723504243235,-810.77,0.00014534,2]
[334719343,1723504243245,-500.0,0.00014534,2]
[334719344,1723504243254,-2196.28,0.00014534,2]
[334719345,1723504243265,-1003.92,0.00014534,2]
[334719346,1723504243275,-500.0,0.00014534,2]
[334719347,1723504243284,-758.53,0.00014534,2]
[334719348,1723504243295,-500.0,0.00014534,2]
[334719349,1723504243304,-1234.65,0.00014534,2]
[334719350,1723504243314,-832.21,0.00014534,2]
[334719351,1723504243323,-500.0,0.00014534,2]
[334719352,1723504243333,-500.0,0.00014534,2]
[334719353,1723504243343,-151.0,0.00014534,2]
[334719354,1723504243352,-1263.79,0.00014534,2]
[334719355,1723504243362,-151.0,0.00014534,2]
[334719356,1723504243372,-500.0,0.00014534,2]
[334719357,1723504243381,-1014.2,0.00014534,2]
[334719358,1723504243392,-873.4,0.00014534,2]
[334719359,1723504243402,-722.71,0.00014534,2]
[334719360,1723504243411,-232.234437,0.00014534,2]
[334719361,1723504243422,-151.0,0.00014534,2]
[334719363,1723504243431,-581.86,0.00014534,2]
[334719365,1723504243440,-500.0,0.00014534,2]
[334719367,1723504243451,-232.234437,0.00014534,2]
[334719369,1723504243460,-151.0,0.00014534,2]
[334719371,1723504243470,-500.0,0.00014534,2]
[334719373,1723504243480,-513.31893746,0.00014534,2]
[334719375,1723504243489,-631.03,0.00014534,2]
[334719377,1723504243499,-500.0,0.00014534,2]
[334719379,1723504243508,-259.22988273,0.00014534,2]
[334719381,1723504243517,-748.94,0.00014534,2]
[334719383,1723504243526,-500.0,0.00014534,2]
[334719385,1723504243536,-962.45115559,0.00014534,2]
[334719496,1723504245492,-47.27954199,0.00014534,2]
[334719497,1723504245504,-249.39930242,0.00014534,2]
[334719498,1723504245514,-151.0,0.00014534,2]
[334719499,1723504245523,-3545.02,0.00014534,2]
[334719500,1723504245533,-265.985104,0.00014534,2]
[334719501,1723504245542,-809.9,0.00014534,2]
[334719502,1723504245552,-161.900296,0.00014534,2]
[334719503,1723504245561,-655.56,0.00014534,2]
[334719504,1723504245571,-619.69,0.00014534,2]
[334719505,1723504245580,-161.900296,0.00014534,2]
[334719506,1723504245592,-500.0,0.00014534,2]
[334719508,1723504245602,-500.0,0.00014534,2]
[334719509,1723504245612,-500.0,0.00014534,2]
[334719510,1723504245621,-1326.37,0.00014534,2]
[334719511,1723504245630,-669.78,0.00014534,2]
[334719512,1723504245640,-500.0,0.00014534,2]
[334719513,1723504245650,-569.48707721,0.00014534,2]
[334719516,1723504251114,183.10678503,9.999e-05,2]
[334719517,1723504263145,413.24144433,0.0001212,2]
[334719518,1723504263677,808.91134605,0.0001212,2]
[334719519,1723504264087,240.46037492,0.0001212,2]
[334719520,1723504264832,204.00134946,0.0001212,2]
[334719521,1723504265122,677.28214947,0.0001212,2]
[334719522,1723504265560,160.42676853,0.0001212,2]
[334719523,1723504265806,155.52327347,0.0001212,2]
[334719524,1723504266710,810.36846259,0.0001212,2]
[334719525,1723504268296,100000.0,0.00013,2]
[334719526,1723504272122,494.60608226,0.0001212,2]
[334719527,1723504272627,199.38339074,0.0001212,2]
[334719528,1723504273333,194.77215095,0.00013699,2]
[334719529,1723504274119,846.11344164,0.0001212,2]
[334719530,1723504274980,338.37197417,0.0001212,2]
[334719531,1723504276616,196.61093207,0.0001212,2]
[334719532,1723504277466,403.58801614,0.0001212,2]
[334719533,1723504280119,155.13251309,0.00014,2]
[334719534,1723504280726,201.43826249,0.0001212,2]
[334719535,1723504284837,154.8775272,0.00014,2]
[334719536,1723504286022,235.60079792,0.0001212,2]
[334719537,1723504286313,205.1880395,0.0001212,2]
[334719538,1723504320206,194.66248299,0.00013699,2]
[334719539,1723504423624,8131.70539596,0.00013,2]
[334719540,1723504423649,25219.91911744,0.00013,2]
[334719541,1723505156065,-156.27,0.000232,31]
[334719542,1723505156094,-108.81,0.000232,31]
[334719543,1723505192251,-47.46,0.000232,31]
[334719544,1723505192280,-156.27,0.000232,31]
[334719545,1723505192308,-156.27,0.000232,31]
[334719546,1723505207631,-156.27,0.000241,31]
[334719547,1723505207661,-156.27,0.000241,31]
[334719552,1723505355676,3102.78,0.00027,120]
[334719553,1723505363994,294.86623583,9.999e-05,2]
[334719554,1723505374142,-5015.49233484,0.00014084,2]
[334719555,1723505389072,332.21200423,9.999e-05,2]
[334719557,1723505429043,14776.29575441,9.999e-05,2]
[334719595,1723505432707,-1316.17866657,0.00014084,2]
[334719596,1723505432717,-207.83396892,0.00014148,2]
[334719597,1723505432726,-191.84164045,0.00014154,2]
[334719598,1723505432735,-300.0,0.00014158,2]
[334719599,1723505432745,-300.0,0.00014158,2]
[334719600,1723505432754,-500.0,0.00014159,2]
[334719601,1723505432763,-1822.0,0.00014159,2]
[334719602,1723505432772,-500.0,0.00014159,2]
[334719603,1723505432781,-7073.22,0.00014159,2]
[334719604,1723505432790,-1095.75,0.00014159,2]
[334719605,1723505432801,-782.69,0.00014159,2]
[334719606,1723505432810,-68.43372406,0.00014159,2]
[334719607,1723505436658,267.79753746,9.999e-05,2]
[334719608,1723505436833,4468.28001141,9.999e-05,2]
[334719613,1723505438076,369.84494077,0.0001212,2]
[334719618,1723505438597,-500.0,0.00014158,2]
[334719619,1723505438617,-500.0,0.00014158,2]
[334719620,1723505438629,-500.0,0.00014158,2]
[334719621,1723505438638,-500.0,0.00014158,2]
[334719622,1723505438649,-500.0,0.00014158,2]
[334719623,1723505438659,-500.0,0.00014158,2]
[334719624,1723505438670,-237.71194581,0.00014158,2]
[334719625,1723505438680,-527.12295329,0.00014158,2]
[334719626,1723505438691,-500.0,0.00014158,2]
[334719627,1723505438703,-500.0,0.00014158,2]
[334719628,1723505438712,-500.0,0.00014158,2]
[334719629,1723505438723,-500.0,0.00014158,2]
[334719630,1723505438734,-500.0,0.00014158,2]
[334719631,1723505438745,-500.0,0.00014158,2]
[334719632,1723505438756,-500.0,0.00014158,2]
[334719633,1723505438766,-500.0,0.00014158,2]
[334719634,1723505438776,-500.0,0.00014158,2]
[334719635,1723505438786,-500.0,0.00014158,2]
[334719636,1723505438796,-500.0,0.00014158,2]
[334719637,1723505438806,-500.0,0.00014158,2]
[334719638,1723505438816,-500.0,0.00014158,2]
[334719639,1723505438828,-500.0,0.00014158,2]
[334719640,1723505438841,-500.0,0.00014158,2]
[334719641,1723505438853,-500.0,0.00014158,2]
[334719642,1723505438863,-500.0,0.00014158,2]
[334719643,1723505438874,-500.0,0.00014158,2]
[334719644,1723505438887,-500.0,0.00014158,2]
[334719645,1723505438897,-500.0,0.00014158,2]
[334719646,1723505438907,-500.0,0.00014158,2]
[334719647,1723505438917,-1210.25627594,0.00014159,2]
[334719648,1723505438926,-591.61,0.00014159,2]
[334719649,1723505438936,-500.0,0.00014159,2]
[334719650,1723505438945,-500.0,0.00014159,2]
[334719651,1723505438956,-50055.30997844,0.0001416,2]
[334719652,1723505438967,-207.83396889,0.00014184,2]
[334719653,1723505438976,-207.83396889,0.00014219,2]
[334719654,1723505438986,-285.65423678,0.00014236,2]
[334719655,1723505438996,-500.0,0.00014236,2]
[334719656,1723505439006,-231.88898318,0.00014236,2]
[334719657,1723505439016,-500.0,0.00014236,2]
[334719658,1723505439026,-500.0,0.00014236,2]
[334719659,1723505439036,-500.0,0.00014236,2]
[334719660,1723505439046,-500.0,0.00014236,2]
[334719661,1723505439056,-500.0,0.00014236,2]
[334719662,1723505439066,-500.0,0.00014236,2]
[334719663,1723505439076,-500.0,0.00014236,2]
[334719664,1723505439086,-500.0,0.00014236,2]
[334719665,1723505439096,-500.0,0.00014236,2]
[334719666,1723505439107,-300.5900484,0.00014236,2]
[334719667,1723505439119,-86462.736518,0.00014238,2]
[334719668,1723505439129,-86462.736518,0.00014245,2]
[334719669,1723505439139,-11467.29574149,0.00014245,2]
[334719670,1723505439149,-57456.2680271,0.00014246,2]
[334719672,1723505439951,3373.97679438,9.999e-05,2]
[334719676,1723505440440,-17666.36455976,0.00014246,2]
[334719683,1723505443273,-500.0,0.00014236,2]
[334719684,1723505443283,-224.39999998,0.00014236,2]
[334719685,1723505443326,-275.60000002,0.00014236,2]
[334719686,1723505443336,-5123.16962701,0.00014246,2]
[334719687,1723505443378,-358.02023162,0.00014246,2]
[334719723,1723505447841,631.98208898,0.0001212,2]
[334719724,1723505453455,196.61093207,0.0001212,2]
[334719725,1723505466095,165.59010032,0.0001212,2]
[334719726,1723505466180,200.31993249,0.0001212,2]
[334719727,1723505466614,154.89860309,0.0001212,2]
[334719728,1723505466883,788.8751659,0.0001212,2]
[334719729,1723505469078,532.63220637,0.0001212,2]
[334719730,1723505469218,154.76012181,0.0001212,2]
[334719731,1723505469592,2180.97444221,0.0001212,2]
[334719732,1723505469625,155.11816879,0.0001212,2]
[334719733,1723505470056,154.77557542,0.0001212,2]
[334719734,1723505470378,259.81805554,0.0001212,2]
[334719735,1723505470601,191.9952835,0.0001212,2]
[334719736,1723505475225,845.23713885,0.0001212,2]
[334719737,1723505484179,154.77557542,0.0001212,2]
[334719738,1723505484619,221.27861252,0.0001212,2]
[334719739,1723505486708,685.35012111,0.0001212,2]
[334719740,1723505505297,24900.0,0.00013227,2]
[334719741,1723505537396,2019.0779307,0.000132,2]
[334719742,1723505573538,413.24144433,0.0001,2]
[334719743,1723505591586,351.0284725,9.999e-05,2]
[334719744,1723505617344,242.52898096,0.000132,2]
[334719745,1723505642586,494.60608226,9.999e-05,2]
[334719746,1723505664615,373.0726274,0.000132,2]